[Event "*** Titled Tuesday Blitz"]
[Site "Chess.com"]
[Date "2020.11.24"]
[Round "8"]
[White "kasparicy"]
[Black "biostatistician"]
[Result "0-1"]
[WhiteElo "2394"]
[BlackElo "2544"]
[TimeControl "180+1"]
[EndTime "11:42:03 PST"]
[Termination "biostatistician won by resignation"]

1. e4 {[%clk 0:02:57.9]} 1... e6 {[%clk 0:02:59.7]} 2. d4 {[%clk 0:02:56.1]}
2... d5 {[%clk 0:03:00.6]} 3. Nd2 {[%clk 0:02:56.3]} 3... Nc6 {[%clk 0:02:59.8]}
4. Ngf3 {[%clk 0:02:55.6]} 4... Nf6 {[%clk 0:03:00.2]} 5. e5 {[%clk 0:02:55.3]}
5... Ne4 {[%clk 0:03:00.6]} 6. Bd3 {[%clk 0:02:55.1]} 6... Nxd2 {[%clk
0:03:00.7]} 7. Bxd2 {[%clk 0:02:54.9]} 7... Nb4 {[%clk 0:03:01.6]} 8. Be2 {[%clk
0:02:53.5]} 8... c5 {[%clk 0:03:02]} 9. c3 {[%clk 0:02:53.6]} 9... Nc6 {[%clk
0:03:02]} 10. Bd3 {[%clk 0:02:53.5]} 10... Bd7 {[%clk 0:03:02.2]} 11. O-O {[%clk
0:02:54]} 11... Be7 {[%clk 0:03:01.4]} 12. Rc1 {[%clk 0:02:54.6]} 12... O-O
{[%clk 0:02:58.9]} 13. Bb1 {[%clk 0:02:52.8]} 13... Rc8 {[%clk 0:02:56.4]} 14.
Be3 {[%clk 0:02:50.3]} 14... cxd4 {[%clk 0:02:54.1]} 15. cxd4 {[%clk 0:02:50.1]}
15... Na5 {[%clk 0:02:45.2]} 16. Qd3 {[%clk 0:02:45.6]} 16... g6 {[%clk
0:02:44.9]} 17. Rxc8 {[%clk 0:02:45.7]} 17... Qxc8 {[%clk 0:02:43.7]} 18. Rc1
{[%clk 0:02:44.8]} 18... Qd8 {[%clk 0:02:43.9]} 19. Bh6 {[%clk 0:02:45.1]} 19...
Re8 {[%clk 0:02:43.7]} 20. g3 {[%clk 0:02:33.6]} 20... Qb6 {[%clk 0:02:42.3]}
21. b3 {[%clk 0:02:31.5]} 21... Rc8 {[%clk 0:02:38.4]} 22. h4 {[%clk 0:02:30.7]}
22... Rxc1+ {[%clk 0:02:37.1]} 23. Bxc1 {[%clk 0:02:31.6]} 23... Bb5 {[%clk
0:02:35.3]} 24. Qc3 {[%clk 0:02:29.5]} 24... Qc6 {[%clk 0:02:32.1]} 25. Qxc6
{[%clk 0:02:26.1]} 25... Nxc6 {[%clk 0:02:33]} 26. h5 {[%clk 0:02:23.7]} 26...
Be2 {[%clk 0:02:32.8]} 27. Kg2 {[%clk 0:02:17.3]} 27... Bxf3+ {[%clk 0:02:30]}
28. Kxf3 {[%clk 0:02:18.2]} 28... Nxd4+ {[%clk 0:02:30.6]} 29. Ke3 {[%clk
0:02:18.8]} 29... Nc6 {[%clk 0:02:26]} 30. hxg6 {[%clk 0:02:17.8]} 30... hxg6
{[%clk 0:02:26.9]} 31. f4 {[%clk 0:02:17.5]} 31... Bc5+ {[%clk 0:02:26.4]} 32.
Kd3 {[%clk 0:02:17.4]} 32... Kf8 {[%clk 0:02:25.5]} 33. g4 {[%clk 0:02:15.7]}
33... g5 {[%clk 0:02:23.2]} 34. a3 {[%clk 0:02:07.9]} 34... gxf4 {[%clk
0:02:21]} 35. b4 {[%clk 0:02:08.4]} 35... Nxe5+ {[%clk 0:02:17.2]} 36. Ke2
{[%clk 0:02:06.5]} 36... Be3 {[%clk 0:02:14.4]} 0-1

[Event "*** Titled Tuesday Blitz"]
[Site "Chess.com"]
[Date "2020.11.24"]
[Round "8"]
[White "LikeWater"]
[Black "XDPS"]
[Result "0-1"]
[WhiteElo "2610"]
[BlackElo "2706"]
[TimeControl "180+1"]
[EndTime "11:42:09 PST"]
[Termination "XDPS won by resignation"]

1. e4 {[%clk 0:03:00.9]} 1... c5 {[%clk 0:02:57.6]} 2. Nc3 {[%clk 0:03:01]} 2...
d6 {[%clk 0:02:55.9]} 3. f4 {[%clk 0:03:01]} 3... g6 {[%clk 0:02:55.9]} 4. Nf3
{[%clk 0:03:00.8]} 4... Bg7 {[%clk 0:02:56.5]} 5. Bb5+ {[%clk 0:02:58.2]} 5...
Nd7 {[%clk 0:02:55.6]} 6. O-O {[%clk 0:02:56.7]} 6... a6 {[%clk 0:02:49.2]} 7.
Bc4 {[%clk 0:02:53.8]} 7... e6 {[%clk 0:02:47.2]} 8. f5 {[%clk 0:02:50.5]} 8...
Ne5 {[%clk 0:02:36.6]} 9. fxe6 {[%clk 0:02:31.8]} 9... fxe6 {[%clk 0:02:33.5]}
10. Nxe5 {[%clk 0:02:14.2]} 10... Bxe5 {[%clk 0:02:34.4]} 11. d3 {[%clk
0:02:05.7]} 11... Bd7 {[%clk 0:02:20.4]} 12. Qg4 {[%clk 0:01:48.3]} 12... Nf6
{[%clk 0:02:12.4]} 13. Rxf6 {[%clk 0:01:47.9]} 13... Qxf6 {[%clk 0:02:11.2]} 14.
Bg5 {[%clk 0:01:48.4]} 14... Qf7 {[%clk 0:01:49.6]} 0-1

[Event "*** Titled Tuesday Blitz"]
[Site "Chess.com"]
[Date "2020.11.24"]
[Round "8"]
[White "FontVella8"]
[Black "saraswathii"]
[Result "1-0"]
[WhiteElo "2550"]
[BlackElo "2404"]
[TimeControl "180+1"]
[EndTime "11:42:09 PST"]
[Termination "FontVella8 won by resignation"]

1. e4 {[%clk 0:03:00.9]} 1... c5 {[%clk 0:02:57.4]} 2. Nf3 {[%clk 0:03:00.9]}
2... e6 {[%clk 0:02:57.3]} 3. d4 {[%clk 0:03:01]} 3... cxd4 {[%clk 0:02:56.9]}
4. Nxd4 {[%clk 0:03:01.9]} 4... Nf6 {[%clk 0:02:56.6]} 5. Bd3 {[%clk 0:03:01.5]}
5... Nc6 {[%clk 0:02:55.8]} 6. Nxc6 {[%clk 0:03:01.3]} 6... bxc6 {[%clk
0:02:56.7]} 7. O-O {[%clk 0:03:01.9]} 7... d5 {[%clk 0:02:55.9]} 8. e5 {[%clk
0:03:01.7]} 8... Nd7 {[%clk 0:02:55.3]} 9. f4 {[%clk 0:03:01.5]} 9... c5 {[%clk
0:02:53.7]} 10. c4 {[%clk 0:02:59.3]} 10... Bb7 {[%clk 0:02:51.9]} 11. Nc3
{[%clk 0:02:59.3]} 11... Nb6 {[%clk 0:02:49.4]} 12. cxd5 {[%clk 0:02:56.1]}
12... Nxd5 {[%clk 0:02:50.3]} 13. Bb5+ {[%clk 0:02:55.5]} 13... Ke7 {[%clk
0:02:48.4]} 14. f5 {[%clk 0:02:47.8]} 14... f6 {[%clk 0:02:37]} 15. exf6+ {[%clk
0:02:39]} 15... Nxf6 {[%clk 0:02:35.3]} 16. Qe2 {[%clk 0:02:33.6]} 16... Qb6
{[%clk 0:02:33.8]} 17. Na4 {[%clk 0:02:24.2]} 17... Qd6 {[%clk 0:02:27.1]} 18.
Bf4 {[%clk 0:02:22.8]} 18... Qd4+ {[%clk 0:02:25]} 19. Kh1 {[%clk 0:02:22.7]}
19... Qe4 {[%clk 0:02:19.6]} 20. Nxc5 {[%clk 0:02:05.2]} 20... Qxe2 {[%clk
0:02:13.8]} 21. Bxe2 {[%clk 0:02:06.1]} 21... Bd5 {[%clk 0:02:13.6]} 22. Nxe6
{[%clk 0:02:02.6]} 22... Bxe6 {[%clk 0:02:14.5]} 23. fxe6 {[%clk 0:02:03.1]}
23... Kxe6 {[%clk 0:02:15]} 24. Bc4+ {[%clk 0:02:01.4]} 24... Kf5 {[%clk
0:02:13.9]} 25. Rae1 {[%clk 0:01:50.3]} 25... Bb4 {[%clk 0:02:02.7]} 26. Re5+
{[%clk 0:01:47]} 26... Kg6 {[%clk 0:02:01]} 27. Rg5+ {[%clk 0:01:44.8]} 1-0

[Event "*** Titled Tuesday Blitz"]
[Site "Chess.com"]
[Date "2020.11.24"]
[Round "8"]
[White "bylavochka"]
[Black "Chessbard1972"]
[Result "0-1"]
[WhiteElo "2139"]
[BlackElo "2325"]
[TimeControl "180+1"]
[EndTime "11:42:14 PST"]
[Termination "Chessbard1972 won by resignation"]

1. e4 {[%clk 0:03:00.9]} 1... c5 {[%clk 0:02:58.9]} 2. Nf3 {[%clk 0:03:00.7]}
2... a6 {[%clk 0:02:58.4]} 3. d4 {[%clk 0:03:01.6]} 3... cxd4 {[%clk 0:02:57.4]}
4. Nxd4 {[%clk 0:03:02.5]} 4... e6 {[%clk 0:02:57.5]} 5. c4 {[%clk 0:03:01.6]}
5... Qc7 {[%clk 0:02:55.9]} 6. Nc3 {[%clk 0:03:00.8]} 6... Nf6 {[%clk 0:02:55]}
7. Bd3 {[%clk 0:02:56.6]} 7... Bc5 {[%clk 0:02:49.7]} 8. Nb3 {[%clk 0:02:56.2]}
8... Ba7 {[%clk 0:02:48.9]} 9. O-O {[%clk 0:02:55.3]} 9... Nc6 {[%clk
0:02:48.3]} 10. a3 {[%clk 0:02:44.8]} 10... h5 {[%clk 0:02:46.7]} 11. Be3 {[%clk
0:02:25.4]} 11... Ng4 {[%clk 0:02:41.9]} 12. g3 {[%clk 0:02:19]} 12... Bxe3
{[%clk 0:02:39.7]} 13. fxe3 {[%clk 0:02:17.9]} 13... Nxe3 {[%clk 0:02:39.6]} 14.
Qf3 {[%clk 0:02:12.6]} 14... Nxf1 {[%clk 0:02:39.4]} 15. Rxf1 {[%clk 0:02:13.4]}
15... Ne5 {[%clk 0:02:36.9]} 16. Qf4 {[%clk 0:01:49.8]} 16... h4 {[%clk
0:02:25]} 17. Nd2 {[%clk 0:01:12.7]} 17... hxg3 {[%clk 0:02:21.6]} 18. hxg3
{[%clk 0:01:13.6]} 18... Qc5+ {[%clk 0:02:19.5]} 0-1

[Event "*** Titled Tuesday Blitz"]
[Site "Chess.com"]
[Date "2020.11.24"]
[Round "8"]
[White "GukeshDommaraju"]
[Black "Alexander_Kachko"]
[Result "1-0"]
[WhiteElo "2900"]
[BlackElo "2775"]
[TimeControl "180+1"]
[EndTime "11:42:22 PST"]
[Termination "GukeshDommaraju won by resignation"]

1. e4 {[%clk 0:03:00.9]} 1... Nc6 {[%clk 0:02:59.1]} 2. Nc3 {[%clk 0:02:57.3]}
2... e5 {[%clk 0:02:58.6]} 3. Nf3 {[%clk 0:02:56.6]} 3... Bc5 {[%clk 0:02:56.4]}
4. Nxe5 {[%clk 0:02:53.8]} 4... Bxf2+ {[%clk 0:02:55]} 5. Kxf2 {[%clk
0:02:53.6]} 5... Nxe5 {[%clk 0:02:54.9]} 6. d4 {[%clk 0:02:54]} 6... Ng6 {[%clk
0:02:53.4]} 7. Bc4 {[%clk 0:02:49.9]} 7... N8e7 {[%clk 0:02:51.9]} 8. Rf1 {[%clk
0:02:48.4]} 8... c6 {[%clk 0:02:51.9]} 9. Kg1 {[%clk 0:02:18.8]} 9... d5 {[%clk
0:02:50.3]} 10. exd5 {[%clk 0:02:18.4]} 10... cxd5 {[%clk 0:02:50.1]} 11. Qf3
{[%clk 0:02:16.8]} 11... Be6 {[%clk 0:02:21.9]} 12. Bb5+ {[%clk 0:02:16.6]}
12... Kf8 {[%clk 0:02:22.1]} 13. Bg5 {[%clk 0:02:14.6]} 13... h6 {[%clk
0:02:18.7]} 14. Rae1 {[%clk 0:02:12.5]} 14... Kg8 {[%clk 0:02:14.4]} 15. Bxe7
{[%clk 0:01:43.4]} 15... Nxe7 {[%clk 0:02:09.8]} 16. Rxe6 {[%clk 0:01:39.6]}
16... fxe6 {[%clk 0:01:57.7]} 17. Qf7+ {[%clk 0:01:39.2]} 17... Kh7 {[%clk
0:01:49.7]} 18. Bd3+ {[%clk 0:01:39.2]} 1-0

[Event "*** Titled Tuesday Blitz"]
[Site "Chess.com"]
[Date "2020.11.24"]
[Round "8"]
[White "Eternauta2400"]
[Black "tan275"]
[Result "1-0"]
[WhiteElo "2415"]
[BlackElo "2191"]
[TimeControl "180+1"]
[EndTime "11:42:25 PST"]
[Termination "Eternauta2400 won by resignation"]

1. Nf3 {[%clk 0:03:00.9]} 1... d5 {[%clk 0:02:59.5]} 2. c4 {[%clk 0:03:00.8]}
2... e6 {[%clk 0:02:59.1]} 3. g3 {[%clk 0:03:00.2]} 3... Nf6 {[%clk 0:02:58.9]}
4. Bg2 {[%clk 0:03:01.1]} 4... d4 {[%clk 0:02:55.9]} 5. O-O {[%clk 0:03:02]}
5... c5 {[%clk 0:02:42.4]} 6. Ne5 {[%clk 0:03:02.9]} 6... Bd6 {[%clk 0:02:40.8]}
7. Nf3 {[%clk 0:03:03.8]} 7... Nc6 {[%clk 0:02:39.1]} 8. b4 {[%clk 0:03:04.7]}
8... cxb4 {[%clk 0:02:37.8]} 9. a3 {[%clk 0:03:03.8]} 9... O-O {[%clk
0:02:33.5]} 10. axb4 {[%clk 0:03:02.9]} 10... Bxb4 {[%clk 0:02:33.4]} 11. Ba3
{[%clk 0:03:03.3]} 11... a5 {[%clk 0:02:29.4]} 12. Bxb4 {[%clk 0:02:58.4]} 12...
Nxb4 {[%clk 0:02:29]} 13. d3 {[%clk 0:02:59.3]} 13... Ra7 {[%clk 0:02:16.9]} 14.
Na3 {[%clk 0:03:00.2]} 14... b6 {[%clk 0:02:14.3]} 15. Nb5 {[%clk 0:03:00.1]}
15... Rd7 {[%clk 0:02:14]} 16. Rc1 {[%clk 0:02:56.2]} 16... Bb7 {[%clk
0:02:09.7]} 17. Ne5 {[%clk 0:02:55.8]} 17... Bxg2 {[%clk 0:02:07.9]} 18. Kxg2
{[%clk 0:02:56.7]} 18... Qa8+ {[%clk 0:01:59.4]} 19. Kg1 {[%clk 0:02:53]} 19...
Rdd8 {[%clk 0:01:58.3]} 20. Qd2 {[%clk 0:02:52.4]} 20... Nd7 {[%clk 0:01:52.9]}
21. Nf3 {[%clk 0:02:48.5]} 21... Nc5 {[%clk 0:01:42.2]} 22. Qb2 {[%clk 0:02:48]}
22... Na4 {[%clk 0:01:26.7]} 23. Qa1 {[%clk 0:02:43.7]} 23... Nc5 {[%clk
0:01:24.4]} 24. Nfxd4 {[%clk 0:02:40.7]} 24... e5 {[%clk 0:01:23]} 25. Nf5
{[%clk 0:02:40.1]} 25... f6 {[%clk 0:01:00.5]} 26. Qb2 {[%clk 0:02:36.6]} 26...
Qc6 {[%clk 0:00:55.6]} 27. Ne7+ {[%clk 0:02:35.5]} 1-0

[Event "*** Titled Tuesday Blitz"]
[Site "Chess.com"]
[Date "2020.11.24"]
[Round "8"]
[White "frederiksvane"]
[Black "bratkoo"]
[Result "1-0"]
[WhiteElo "2733"]
[BlackElo "2528"]
[TimeControl "180+1"]
[EndTime "11:42:43 PST"]
[Termination "frederiksvane won by resignation"]

1. e4 {[%clk 0:03:00.9]} 1... g6 {[%clk 0:02:59.5]} 2. d4 {[%clk 0:03:01]} 2...
Bg7 {[%clk 0:02:59.7]} 3. Nf3 {[%clk 0:03:01.3]} 3... d6 {[%clk 0:03:00.3]} 4.
Nbd2 {[%clk 0:03:00]} 4... a6 {[%clk 0:03:00.8]} 5. Bd3 {[%clk 0:02:59.8]} 5...
c5 {[%clk 0:02:59]} 6. c3 {[%clk 0:02:51.7]} 6... Nc6 {[%clk 0:02:57.8]} 7. d5
{[%clk 0:02:49.1]} 7... Ne5 {[%clk 0:02:56.4]} 8. Nxe5 {[%clk 0:02:49.4]} 8...
Bxe5 {[%clk 0:02:57.2]} 9. O-O {[%clk 0:02:49.4]} 9... Bg7 {[%clk 0:02:57.1]}
10. a4 {[%clk 0:02:49]} 10... Nf6 {[%clk 0:02:57]} 11. Nc4 {[%clk 0:02:48.1]}
11... O-O {[%clk 0:02:57]} 12. h3 {[%clk 0:02:44.6]} 12... Rb8 {[%clk 0:02:56]}
13. a5 {[%clk 0:02:42.8]} 13... Bd7 {[%clk 0:02:56.6]} 14. Bf4 {[%clk
0:02:32.8]} 14... Bb5 {[%clk 0:02:56.3]} 15. Re1 {[%clk 0:02:32.4]} 15... Nd7
{[%clk 0:02:55.5]} 16. Qc2 {[%clk 0:02:27.5]} 16... b6 {[%clk 0:02:33]} 17. axb6
{[%clk 0:02:23.5]} 17... Nxb6 {[%clk 0:02:31]} 18. Na5 {[%clk 0:02:22.5]} 18...
Qc7 {[%clk 0:02:13.6]} 19. Bf1 {[%clk 0:02:04.8]} 19... Bxf1 {[%clk 0:02:11.9]}
20. Kxf1 {[%clk 0:02:02.9]} 20... e5 {[%clk 0:02:09.6]} 21. Bd2 {[%clk
0:01:49.3]} 21... f5 {[%clk 0:02:09.1]} 22. Nc6 {[%clk 0:01:45.9]} 22... Ra8
{[%clk 0:02:08.9]} 23. b4 {[%clk 0:01:39.9]} 23... fxe4 {[%clk 0:02:08]} 24.
Qxe4 {[%clk 0:01:36.5]} 24... Qf7 {[%clk 0:01:59]} 25. Be3 {[%clk 0:01:33.6]}
25... Nxd5 {[%clk 0:01:58.5]} 26. Qxd5 {[%clk 0:01:20.3]} 26... Qxd5 {[%clk
0:01:56.1]} 27. Ne7+ {[%clk 0:01:20.6]} 27... Kf7 {[%clk 0:01:57]} 28. Nxd5
{[%clk 0:01:21.1]} 28... Ke6 {[%clk 0:01:57.6]} 29. Nc7+ {[%clk 0:01:21.1]} 1-0

[Event "*** Titled Tuesday Blitz"]
[Site "Chess.com"]
[Date "2020.11.24"]
[Round "8"]
[White "Korchmar_Vasiliy"]
[Black "yourstrulyme"]
[Result "1-0"]
[WhiteElo "2602"]
[BlackElo "2477"]
[TimeControl "180+1"]
[EndTime "11:42:45 PST"]
[Termination "Korchmar_Vasiliy won by checkmate"]

1. e4 {[%clk 0:03:00.9]} 1... c6 {[%clk 0:02:57.7]} 2. Nf3 {[%clk 0:02:59]} 2...
d5 {[%clk 0:02:58.6]} 3. Nc3 {[%clk 0:02:59.4]} 3... dxe4 {[%clk 0:02:57.7]} 4.
Nxe4 {[%clk 0:02:57.7]} 4... Nf6 {[%clk 0:02:58.3]} 5. Nxf6+ {[%clk 0:02:57.4]}
5... exf6 {[%clk 0:02:59.2]} 6. d4 {[%clk 0:02:57.4]} 6... Bd6 {[%clk
0:02:59.8]} 7. Bd3 {[%clk 0:02:56.7]} 7... O-O {[%clk 0:02:59.6]} 8. O-O {[%clk
0:02:54.5]} 8... Bg4 {[%clk 0:02:52.3]} 9. c3 {[%clk 0:02:51.1]} 9... Re8 {[%clk
0:02:51.9]} 10. h3 {[%clk 0:02:45.7]} 10... Bh5 {[%clk 0:02:50.5]} 11. g4 {[%clk
0:02:46.2]} 11... Bg6 {[%clk 0:02:47.8]} 12. Nh4 {[%clk 0:02:46.7]} 12... Nd7
{[%clk 0:02:43.5]} 13. Nf5 {[%clk 0:02:35.2]} 13... Bxf5 {[%clk 0:02:41.7]} 14.
gxf5 {[%clk 0:02:24.3]} 14... Nf8 {[%clk 0:02:32.2]} 15. Qf3 {[%clk 0:02:21.7]}
15... Bc7 {[%clk 0:02:30.8]} 16. Bd2 {[%clk 0:01:58.1]} 16... Qd6 {[%clk
0:02:30]} 17. Rfe1 {[%clk 0:01:58.1]} 17... Qh2+ {[%clk 0:02:28.8]} 18. Kf1
{[%clk 0:01:58.1]} 18... h6 {[%clk 0:02:17.2]} 19. Qg2 {[%clk 0:01:31.5]} 19...
Qd6 {[%clk 0:02:12.9]} 20. Bxh6 {[%clk 0:01:30.7]} 20... g6 {[%clk 0:01:47.8]}
21. fxg6 {[%clk 0:01:30.8]} 21... fxg6 {[%clk 0:01:43.8]} 22. Bxg6 {[%clk
0:01:25.9]} 22... Rxe1+ {[%clk 0:01:44]} 23. Rxe1 {[%clk 0:01:25.1]} 23... Qh2
{[%clk 0:01:44.6]} 24. Bf7+ {[%clk 0:01:20.7]} 24... Kxf7 {[%clk 0:01:44.1]} 25.
Qg7# {[%clk 0:01:20.8]} 1-0

[Event "*** Titled Tuesday Blitz"]
[Site "Chess.com"]
[Date "2020.11.24"]
[Round "8"]
[White "esskeettit"]
[Black "HanSchut"]
[Result "0-1"]
[WhiteElo "2443"]
[BlackElo "2218"]
[TimeControl "180+1"]
[EndTime "11:42:53 PST"]
[Termination "HanSchut won by resignation"]

1. d4 {[%clk 0:03:00.9]} 1... Nf6 {[%clk 0:02:59.6]} 2. c4 {[%clk 0:03:00.5]}
2... g6 {[%clk 0:03:00.1]} 3. Nc3 {[%clk 0:03:00.2]} 3... d5 {[%clk 0:03:00.6]}
4. cxd5 {[%clk 0:03:01.1]} 4... Nxd5 {[%clk 0:03:00.8]} 5. e4 {[%clk 0:03:02]}
5... Nxc3 {[%clk 0:03:01.3]} 6. bxc3 {[%clk 0:03:02.9]} 6... Bg7 {[%clk
0:03:01.9]} 7. Nf3 {[%clk 0:03:03.8]} 7... c5 {[%clk 0:03:02.2]} 8. Be3 {[%clk
0:03:04.6]} 8... Qa5 {[%clk 0:03:01.5]} 9. Qd2 {[%clk 0:03:04.5]} 9... Nc6
{[%clk 0:03:01.8]} 10. Rc1 {[%clk 0:03:03.9]} 10... cxd4 {[%clk 0:03:01.8]} 11.
cxd4 {[%clk 0:03:03.8]} 11... Qxd2+ {[%clk 0:03:02.5]} 12. Kxd2 {[%clk
0:03:03.9]} 12... O-O {[%clk 0:03:03.2]} 13. Bb5 {[%clk 0:03:02.7]} 13... f5
{[%clk 0:02:57.3]} 14. Bxc6 {[%clk 0:03:00.4]} 14... bxc6 {[%clk 0:02:57.2]} 15.
exf5 {[%clk 0:02:47.8]} 15... Bxf5 {[%clk 0:02:56.5]} 16. Rxc6 {[%clk
0:02:47.5]} 16... Rab8 {[%clk 0:02:55.8]} 17. Ke2 {[%clk 0:01:57.7]} 17... Rb2+
{[%clk 0:02:42.2]} 18. Nd2 {[%clk 0:01:57.7]} 18... Be4 {[%clk 0:02:30.1]} 19.
Rc7 {[%clk 0:01:56.1]} 19... Bxg2 {[%clk 0:02:29.6]} 20. Rhc1 {[%clk 0:01:53.3]}
20... e5 {[%clk 0:02:11.4]} 21. dxe5 {[%clk 0:01:46.5]} 21... Bxe5 {[%clk
0:02:11]} 22. Rxa7 {[%clk 0:01:46.9]} 22... Bxh2 {[%clk 0:02:01.4]} 23. Bd4
{[%clk 0:01:21.3]} 23... Rb7 {[%clk 0:01:37.1]} 24. Rxb7 {[%clk 0:01:18.5]}
24... Bxb7 {[%clk 0:01:37.9]} 25. Rc7 {[%clk 0:01:19.4]} 25... Bxc7 {[%clk
0:01:36.2]} 0-1

[Event "*** Titled Tuesday Blitz"]
[Site "Chess.com"]
[Date "2020.11.24"]
[Round "8"]
[White "Supernotar"]
[Black "ShahMatKanal"]
[Result "1/2-1/2"]
[WhiteElo "2830"]
[BlackElo "2518"]
[TimeControl "180+1"]
[EndTime "11:42:54 PST"]
[Termination "Game drawn by agreement"]

1. d4 {[%clk 0:03:00.9]} 1... e6 {[%clk 0:02:57.7]} 2. c4 {[%clk 0:03:01.2]}
2... d5 {[%clk 0:02:57.7]} 3. Nf3 {[%clk 0:03:01.5]} 3... Nf6 {[%clk 0:02:57.7]}
4. e3 {[%clk 0:03:02]} 4... b6 {[%clk 0:02:51.2]} 5. Nbd2 {[%clk 0:03:01.7]}
5... Bb7 {[%clk 0:02:51.4]} 6. Bd3 {[%clk 0:03:02]} 6... Be7 {[%clk 0:02:46.6]}
7. O-O {[%clk 0:03:02.2]} 7... O-O {[%clk 0:02:46.6]} 8. b3 {[%clk 0:03:02.3]}
8... c5 {[%clk 0:02:39.3]} 9. Bb2 {[%clk 0:03:02.3]} 9... cxd4 {[%clk
0:02:36.9]} 10. Nxd4 {[%clk 0:03:00.7]} 10... Nc6 {[%clk 0:02:33.7]} 11. Qe2
{[%clk 0:02:52.5]} 11... Nb4 {[%clk 0:02:16.8]} 12. Bb1 {[%clk 0:02:52.2]} 12...
dxc4 {[%clk 0:02:12.7]} 13. Nxc4 {[%clk 0:02:51.1]} 13... Qd5 {[%clk 0:02:12.6]}
14. f3 {[%clk 0:02:51.6]} 14... Qh5 {[%clk 0:02:08.8]} 15. a3 {[%clk 0:02:51.1]}
15... Nc6 {[%clk 0:01:58.7]} 16. Nxc6 {[%clk 0:02:50.2]} 16... Bxc6 {[%clk
0:01:59.6]} 17. Bd3 {[%clk 0:02:42.9]} 17... Rfd8 {[%clk 0:01:54.2]} 18. Rfd1
{[%clk 0:02:34.6]} 18... Nd5 {[%clk 0:01:49.1]} 19. Ne5 {[%clk 0:02:27.8]} 19...
Be8 {[%clk 0:01:44.7]} 20. Rac1 {[%clk 0:02:25.2]} 20... Bf6 {[%clk 0:01:41]}
21. Bd4 {[%clk 0:02:14.2]} 21... Bxe5 {[%clk 0:01:33]} 22. g4 {[%clk 0:02:14.5]}
22... Qg5 {[%clk 0:01:22.4]} 23. h4 {[%clk 0:02:07.7]} 1/2-1/2

[Event "*** Titled Tuesday Blitz"]
[Site "Chess.com"]
[Date "2020.11.24"]
[Round "8"]
[White "2346PL"]
[Black "dosto07"]
[Result "1-0"]
[WhiteElo "2439"]
[BlackElo "2315"]
[TimeControl "180+1"]
[EndTime "11:43:13 PST"]
[Termination "2346PL won by resignation"]

1. d4 {[%clk 0:03:00.9]} 1... d5 {[%clk 0:02:59.4]} 2. Nc3 {[%clk 0:03:01.4]}
2... Nf6 {[%clk 0:02:58]} 3. Bf4 {[%clk 0:03:01.8]} 3... c6 {[%clk 0:02:55.3]}
4. e3 {[%clk 0:03:01.7]} 4... Bf5 {[%clk 0:02:50.2]} 5. f3 {[%clk 0:03:01.9]}
5... h6 {[%clk 0:02:47.4]} 6. g4 {[%clk 0:03:02.1]} 6... Bh7 {[%clk 0:02:47.6]}
7. h4 {[%clk 0:03:02.4]} 7... e6 {[%clk 0:02:42.4]} 8. Bd3 {[%clk 0:03:02.7]}
8... Bxd3 {[%clk 0:02:40.4]} 9. Qxd3 {[%clk 0:03:03.6]} 9... Bd6 {[%clk
0:02:39.7]} 10. Nge2 {[%clk 0:03:04.1]} 10... Na6 {[%clk 0:02:35.8]} 11. a3
{[%clk 0:03:03.6]} 11... Bxf4 {[%clk 0:02:33.6]} 12. Nxf4 {[%clk 0:03:02.7]}
12... Qe7 {[%clk 0:02:21.2]} 13. O-O-O {[%clk 0:02:59]} 13... O-O-O {[%clk
0:02:20.7]} 14. g5 {[%clk 0:02:54.6]} 14... Nd7 {[%clk 0:02:18.8]} 15. g6 {[%clk
0:02:49.3]} 15... e5 {[%clk 0:02:12]} 16. Nh5 {[%clk 0:02:31.4]} 16... f6 {[%clk
0:01:56.3]} 17. e4 {[%clk 0:02:07.2]} 17... exd4 {[%clk 0:01:52.3]} 18. Qxd4
{[%clk 0:02:05.8]} 18... Nb6 {[%clk 0:01:47.9]} 19. exd5 {[%clk 0:01:51.5]}
19... Nxd5 {[%clk 0:01:46.8]} 20. Rhe1 {[%clk 0:01:50]} 20... Nxc3 {[%clk
0:01:37]} 21. Rxe7 {[%clk 0:01:39.8]} 21... Rxd4 {[%clk 0:01:35.6]} 22. Rxd4
{[%clk 0:01:39.8]} 22... Nd5 {[%clk 0:01:31.1]} 23. Rxg7 {[%clk 0:01:36.8]}
23... Nc5 {[%clk 0:01:31.5]} 24. Rxd5 {[%clk 0:01:32.6]} 24... cxd5 {[%clk
0:01:30.8]} 25. Nxf6 {[%clk 0:01:33.1]} 25... Ne6 {[%clk 0:01:25.4]} 26. Re7
{[%clk 0:01:31.2]} 26... Nf4 {[%clk 0:01:19.4]} 27. g7 {[%clk 0:01:31.2]} 27...
Rd8 {[%clk 0:01:18.8]} 28. Re8 {[%clk 0:01:27.2]} 1-0